bitfinex/quotes_BTCUSD_20220213
["timestamp","ask_amount","ask_price","bid_price","bid_amount"]
[1644778815653,0.29370496,41995.0,41994.0,0.08001894]
[1644778815852,0.55440689,41995.0,41994.0,0.08001894]
[1644778816052,0.51213089,41995.0,41994.0,0.08001894]
[1644778816252,0.03684477,41995.0,41994.0,0.08001894]
[1644778816451,0.07912077,41995.0,41994.0,0.08001894]
[1644778816652,0.107155,41997.0,41995.0,0.03141353]
[1644778816852,0.2160562,41996.0,41995.0,0.03141353]
[1644778817055,1.0,41995.0,41993.0,0.00013043]
[1644778817252,0.32364096,41994.0,41983.0,0.00013043]
[1644778817453,0.32364096,41994.0,41982.0,0.17403043]
[1644778817653,0.0645,41988.0,41982.0,0.17403043]
[1644778817855,0.0476,41991.0,41982.0,0.00013043]
[1644778818051,0.0476,41991.0,41984.0,0.20234476]
[1644778818700,0.059575,41988.0,41985.0,0.00031518]
[1644778818902,0.059571,41987.0,41985.0,0.00044561]
[1644778819100,0.059571,41987.0,41986.0,0.334206]
[1644778820101,0.059575,41988.0,41986.0,0.334206]
[1644778820505,0.059575,41988.0,41987.0,0.28142713]
[1644778820701,0.059575,41988.0,41987.0,0.61563313]
[1644778821302,0.059575,41988.0,41987.0,0.334206]
[1644778821504,0.059575,41988.0,41986.0,0.33433643]
[1644778821701,0.059575,41988.0,41986.0,0.32933643]
[1644778822150,0.059575,41988.0,41987.0,0.04000947]
[1644778822350,0.059575,41988.0,41987.0,0.41422494]
[1644778822550,0.059575,41988.0,41987.0,0.41427894]
[1644778822851,0.05956,41990.0,41987.0,0.41427894]
[1644778823054,0.05956,41990.0,41988.0,0.33426]
[1644778823251,0.05956,41990.0,41987.0,0.08014866]
[1644778823451,0.05956,41990.0,41988.0,0.33426]
[1644778824151,0.05956,41990.0,41989.0,0.33426]
[1644778824952,0.05956,41990.0,41988.0,0.00012972]
[1644778825154,0.119123,41990.0,41987.0,0.08033167]
[1644778825702,0.119123,41990.0,41988.0,0.33426]
[1644778825900,0.119123,41990.0,41987.0,0.08014866]
[1644778826099,0.119123,41990.0,41988.0,0.33426]
[1644778826299,0.119123,41990.0,41987.0,0.08014866]
[1644778826500,0.119123,41990.0,41988.0,0.33426]
[1644778826700,0.119123,41990.0,41987.0,0.08014866]
[1644778826901,0.119123,41990.0,41988.0,0.33426]
[1644778827501,0.119123,41990.0,41989.0,0.08001894]
[1644778828405,0.11906289,41990.0,41989.0,0.08001894]
[1644778831653,0.11906289,41990.0,41989.0,0.07001894]
[1644778832655,0.11906289,41990.0,41989.0,0.04000947]
[1644778832954,0.11906289,41990.0,41989.0,0.07001894]
[1644778833204,0.11906289,41990.0,41989.0,0.40427894]
[1644778833205,0.05956,41990.0,41989.0,0.40427894]
[1644778834307,0.1763,41999.0,41998.0,0.07529983]
[1644778834705,0.2851236,42005.0,41998.0,0.07529983]
[1644778834706,0.3,42005.0,41998.0,0.07529983]
[1644778834906,0.3,42005.0,42002.0,0.04000947]
[1644778835106,0.359541,42009.0,42003.0,0.23515855]
[1644778835909,0.059543,42005.0,42003.0,0.23515855]
[1644778836312,0.119087,42005.0,42003.0,0.23515855]
[1644778837051,0.119087,42005.0,42003.0,0.23015855]
[1644778838252,0.059544,42005.0,42004.0,0.03000947]
[1644778840257,0.059544,42005.0,42004.0,0.07001894]
[1644778842606,0.059544,42005.0,42004.0,0.40427894]
[1644778842805,0.059543,42007.0,42004.0,0.71508713]
[1644778843008,0.3,42015.0,42005.0,0.33426]
[1644778843308,0.00034366,42019.0,42014.0,0.0834076]
[1644778843309,1.1491,42018.0,42014.0,0.0834076]
[1644778843508,0.00034366,42019.0,42015.0,0.53163445]
[1644778843705,0.059525,42020.0,42015.0,0.19737445]
[1644778843910,0.0001201,42019.0,42015.0,0.19737445]
[1644778844305,0.0001201,42019.0,42015.0,0.19237445]
[1644778844759,0.119046,42020.0,42016.0,0.33426]
[1644778845362,0.059512,42024.0,42016.0,0.66540885]
[1644778845559,0.119028,42024.0,42018.0,0.37426947]
[1644778845758,0.119028,42024.0,42018.0,0.04000947]
[1644778845960,0.119028,42024.0,42019.0,0.33426]
[1644778846567,0.05973366,42026.0,42020.0,0.0476]
[1644778846760,0.32770913,42031.0,42020.0,0.0476]
[1644778846761,0.00022566,42027.0,42021.0,0.33426]
[1644778846960,0.3,42032.0,42027.0,0.08708496]
[1644778846961,0.00022566,42028.0,42027.0,0.08708496]
[1644778847161,0.00022566,42028.0,42021.0,0.33426]
[1644778847162,0.00022566,42030.0,42028.0,0.33426]
[1644778847359,0.00022566,42031.0,42028.0,0.33426]
[1644778847566,0.54556456,42035.0,42028.0,0.33426]
[1644778847567,0.00036966,42030.0,42028.0,0.33426]
[1644778847962,0.00036966,42030.0,42028.0,0.58542984]
[1644778848211,0.00036966,42030.0,42029.0,0.4033597]
[1644778848411,0.05509532,42032.0,42029.0,0.4509597]
[1644778848610,0.00048456,42036.0,42029.0,0.4509597]
[1644778848611,0.00022566,42033.0,42030.0,0.33426]
[1644778848811,0.00036965,42032.0,42031.0,0.64664314]
[1644778849612,0.00022566,42034.0,42031.0,0.69424314]
[1644778849812,0.04520522,42037.0,42032.0,0.33426]
[1644778850012,0.04520522,42037.0,42033.0,0.0476]
[1644778850212,0.04520522,42037.0,42035.0,0.25411704]
[1644778850414,0.04520522,42037.0,42035.0,0.58837704]
[1644778850613,0.04520522,42037.0,42036.0,0.33426]
[1644778850813,0.04520522,42037.0,42036.0,0.65823104]
[1644778851817,0.06470122,42039.0,42037.0,0.33426]
[1644778852064,0.01,42039.0,42038.0,0.28293533]
[1644778852260,0.01,42039.0,42038.0,0.61719533]
[1644778852464,0.01,42039.0,42038.0,0.66479533]
[1644778853664,0.01,42039.0,42038.0,0.38186]
[1644778854063,0.01,42039.0,42038.0,0.41186947]
[1644778855164,0.00948,42039.0,42038.0,0.41186947]
[1644778856203,0.00948,42039.0,42038.0,0.45187894]
[1644778857206,0.00948,42039.0,42038.0,0.40427894]
[1644778858007,0.00948,42039.0,42038.0,0.70843264]
[1644778858605,0.00037018,42041.0,42040.0,0.33426]
[1644778858805,0.00059588,42041.0,42040.0,0.33426]
[1644778859010,0.00037018,42041.0,42040.0,0.33426]
[1644778859205,0.0002257,42046.0,42040.0,0.33426]
[1644778859463,0.00037017,42043.0,42040.0,0.36426947]
[1644778860556,0.0597117,42044.0,42040.0,0.36426947]
[1644778860757,0.05963277,42044.0,42040.0,0.36426947]
[1644778861359,0.05963277,42044.0,42040.0,0.31426947]
[1644778861557,0.05963277,42044.0,42043.0,0.33426]
[1644778861758,0.059486,42044.0,42043.0,0.33426]
[1644778861957,0.05985888,42044.0,42043.0,0.33426]
[1644778862959,0.059486,42044.0,42043.0,0.33426]
[1644778863212,0.0002257,42046.0,42043.0,0.33426]
[1644778863213,0.00059857,42046.0,42043.0,0.33426]
[1644778863412,0.00037287,42046.0,42043.0,0.38186]
[1644778864012,0.0001,42049.0,42043.0,0.38186]
[1644778864210,0.0002257,42047.0,42043.0,0.38186]
[1644778864410,0.00037287,42047.0,42043.0,0.38186]
[1644778864610,0.00037287,42047.0,42045.0,0.03000947]
[1644778864815,0.00037287,42047.0,42046.0,0.333836]
[1644778865212,0.05958,42049.0,42046.0,0.333836]
[1644778865412,0.0598057,42049.0,42046.0,0.333836]
[1644778865613,0.05958,42049.0,42046.0,0.333836]
[1644778865813,0.05958,42049.0,42047.0,0.28086027]
[1644778866012,0.0001,42049.0,42048.0,0.333836]
[1644778866313,0.0001,42049.0,42048.0,0.68981628]
[1644778866960,0.0001,42049.0,42048.0,0.72982575]
[1644778867555,0.21572613,42061.0,42057.0,0.06684262]
[1644778867757,0.005,42059.0,42057.0,0.06684262]
[1644778868157,0.109376,42058.0,42050.0,0.200199]
[1644778868357,0.049467,42058.0,42050.0,0.200199]
[1644778868556,0.04969357,42058.0,42056.0,0.24720838]
[1644778868756,0.237881,42062.0,42056.0,0.24720838]
[1644778868757,0.11628565,42062.0,42056.0,0.24720838]
[1644778869357,0.00037852,42059.0,42058.0,0.0717133]
[1644778870157,0.118941,42060.0,42058.0,0.0717133]
[1644778870557,0.059467,42060.0,42058.0,0.0717133]
[1644778872114,0.054467,42060.0,42059.0,0.04000947]
[1644778873119,0.11666415,42062.0,42059.0,0.37353635]
[1644778873120,0.0003785,42062.0,42059.0,0.37353635]
[1644778873416,0.0003785,42062.0,42061.0,0.333836]
[1644778873618,0.0003785,42062.0,42061.0,0.381436]
[1644778873815,0.00081633,42064.0,42061.0,0.381436]
[1644778874015,0.00096148,42064.0,42061.0,0.381436]
[1644778874859,0.00081633,42064.0,42061.0,0.381436]
[1644778875062,0.00081633,42064.0,42062.0,0.03000947]
[1644778875259,0.00081633,42064.0,42063.0,0.95504938]
[1644778876866,0.00151601,42072.0,42064.0,1.0]
[1644778877065,0.00151601,42072.0,42065.0,0.431436]
[1644778877270,0.01,42079.0,42070.0,0.05]
[1644778877467,0.01,42079.0,42072.0,0.07787549]
[1644778877667,0.01,42079.0,42073.0,0.381436]
[1644778878308,0.01,42079.0,42074.0,0.19263535]
[1644778878509,0.01,42079.0,42076.0,0.25]
[1644778878510,0.00506665,42079.0,42076.0,0.25]
[1644778878709,0.00506665,42079.0,42077.0,0.381436]
[1644778878908,0.00506665,42079.0,42078.0,0.0476]
[1644778879108,6.665e-05,42079.0,42078.0,0.381436]
[1644778879911,6.65e-06,42079.0,42078.0,0.831436]
[1644778880114,6.65e-06,42079.0,42078.0,0.931436]
[1644778880316,6.65e-06,42079.0,42078.0,0.96144547]
[1644778880511,6.65e-06,42079.0,42078.0,1.20704547]
[1644778881114,6.665e-05,42081.0,42079.0,1.0]
[1644778881115,0.00014647,42081.0,42079.0,1.0]
[1644778881312,0.00014647,42081.0,42080.0,1.145854]
[1644778881512,0.00014647,42081.0,42080.0,1.086445]
[1644778881712,0.00014647,42081.0,42080.0,1.236445]
[1644778881982,0.00014647,42081.0,42080.0,0.6432]
[1644778882160,6.665e-05,42086.0,42080.0,0.6432]
[1644778882360,6.665e-05,42086.0,42081.0,0.333836]
[1644778882559,0.00014647,42083.0,42082.0,0.30654334]
[1644778882760,0.0105858,42089.0,42084.0,0.03970035]
[1644778882761,0.2475496,42088.0,42084.0,0.03970035]
[1644778882966,0.35513724,42087.0,42084.0,0.03970035]
[1644778883161,0.054909,42086.0,42084.0,0.03970035]
[1644778883360,0.359433,42086.0,42084.0,0.03970035]
[1644778883660,0.059433,42086.0,42084.0,0.03970035]
[1644778883861,0.059433,42086.0,42085.0,0.07980243]
[1644778884162,0.00022824,42088.0,42085.0,0.41363843]
[1644778884362,0.00564131,42089.0,42085.0,0.07980243]
[1644778884562,0.00541307,42089.0,42085.0,0.07980243]
[1644778884759,0.00541307,42089.0,42086.0,0.333836]
[1644778884963,0.0057969,42089.0,42086.0,0.333836]
[1644778885812,0.0057969,42089.0,42088.0,0.03000947]
[1644778885813,0.00541307,42089.0,42088.0,0.03000947]
[1644778886013,0.00038382,42090.0,42088.0,0.36384547]
[1644778886213,0.118837,42101.0,42088.0,0.36384547]
[1644778886412,0.118837,42101.0,42088.0,0.03000947]
[1644778886413,0.20164402,42099.0,42088.0,0.03000947]
[1644778886613,0.059421,42097.0,42088.0,0.03000947]
[1644778886814,0.29117843,42097.0,42088.0,0.03000947]
[1644778887214,0.52384469,42097.0,42088.0,0.03000947]
[1644778887414,0.048921,42097.0,42088.0,0.03000947]
[1644778887616,0.05,42100.0,42088.0,0.03000947]
[1644778887816,0.118833,42101.0,42099.0,0.0751903]
[1644778888219,0.054909,42100.0,42099.0,0.0751903]
[1644778888416,0.118833,42101.0,42099.0,0.0751903]
[1644778888417,0.059413,42102.0,42099.0,0.32856198]
[1644778889016,0.307091,42107.0,42099.0,0.32849533]
[1644778889017,0.059405,42106.0,42099.0,0.32849533]
[1644778889659,0.00038374,42105.0,42099.0,0.32849533]
[1644778890658,0.37822213,42106.0,42099.0,0.32849533]
[1644778890862,0.00038374,42104.0,42099.0,0.32849533]
[1644778891059,0.00038374,42104.0,42102.0,0.03000947]
[1644778891860,0.05963633,42105.0,42102.0,0.03000947]
[1644778892058,0.05,42103.0,42102.0,0.03000947]
[1644778892459,0.05963633,42105.0,42102.0,0.03000947]
[1644778892659,0.059408,42105.0,42102.0,0.03000947]
[1644778893309,0.059408,42105.0,42104.0,0.03970035]
[1644778894312,0.36669433,42107.0,42104.0,0.03970035]
[1644778894313,0.01022833,42107.0,42104.0,0.03970035]
[1644778894515,0.01,42107.0,42104.0,0.03970035]
[1644778895312,0.059407,42106.0,42104.0,0.03970035]
[1644778896314,0.059407,42106.0,42105.0,0.03000947]
[1644778896963,0.128808,42107.0,42105.0,0.03000947]
[1644778897760,0.00522833,42108.0,42106.0,0.333836]
[1644778897965,0.005385,42108.0,42107.0,0.36660269]
[1644778898162,0.00153979,42114.0,42110.0,0.04933142]
[1644778898363,0.52597986,42121.0,42113.0,0.4]
[1644778898563,0.52597986,42121.0,42114.0,0.71155981]
[1644778898764,0.52597986,42121.0,42115.0,0.106966]
[1644778898960,0.52597986,42121.0,42116.0,0.54254578]
[1644778899561,0.00147986,42121.0,42116.0,0.54254578]
[1644778900161,0.00147986,42121.0,42116.0,0.333836]
[1644778900807,0.00147986,42121.0,42114.0,0.07772381]
[1644778901207,0.00147986,42121.0,42117.0,0.22384965]
[1644778901510,0.00147986,42121.0,42118.0,0.333836]
[1644778901707,0.00147986,42121.0,42119.0,0.36384547]
[1644778901908,0.00147986,42121.0,42119.0,0.03000947]
[1644778902307,0.00147986,42121.0,42120.0,0.333836]
[1644778903106,0.00147986,42121.0,42120.0,0.56704093]
[1644778903309,0.00154106,42128.0,42120.0,0.56704093]
[1644778903608,0.00154106,42128.0,42122.0,0.333836]
[1644778903809,0.05518272,42137.0,42122.0,0.333836]
[1644778904012,0.00518272,42137.0,42126.0,0.333836]
[1644778904461,0.00518272,42137.0,42128.0,0.41609354]
[1644778904657,0.00518272,42137.0,42128.0,0.71077153]
[1644778905061,0.00518272,42137.0,42128.0,0.41609354]
[1644778905461,0.00518272,42137.0,42129.0,0.3]
[1644778905660,0.00518272,42137.0,42130.0,0.333836]
[1644778906261,0.059359,42136.0,42126.0,0.0476]
[1644778906458,0.059359,42136.0,42127.0,0.333836]
[1644778906962,0.059359,42136.0,42132.0,0.03000947]
[1644778907359,0.059359,42136.0,42135.0,0.08977635]
[1644778907562,0.00518272,42137.0,42135.0,0.08977635]
[1644778907763,0.00038582,42136.0,42135.0,0.08977635]
[1644778908212,0.00038582,42136.0,42132.0,0.03000947]
[1644778908615,0.00518272,42137.0,42132.0,0.03000947]
[1644778908811,0.00038582,42136.0,42132.0,0.03000947]
[1644778909013,0.11910482,42136.0,42132.0,0.03000947]
[1644778909215,0.11910482,42136.0,42134.0,0.03970035]
[1644778909812,0.118719,42136.0,42134.0,0.03970035]
[1644778911222,0.164276,42135.0,42134.0,0.03970035]
[1644778911415,0.44750299,42135.0,42134.0,0.03970035]
[1644778911818,0.49750299,42135.0,42134.0,0.03970035]
[1644778912078,0.261876,42135.0,42134.0,0.03970035]
[1644778912378,0.20912908,42135.0,42134.0,0.06970982]
[1644778912778,0.15912908,42135.0,42134.0,0.06970982]
[1644778913780,0.106967,42135.0,42134.0,0.06970982]
[1644778914384,1.456967,42135.0,42134.0,0.06970982]
[1644778914579,1.25,42133.0,42116.0,0.3]
[1644778914778,0.059389,42122.0,42116.0,0.00024318]
[1644778914978,0.0476,42121.0,42116.0,0.00024318]
[1644778915378,0.04783287,42121.0,42119.0,0.08096767]
[1644778915580,0.0476,42121.0,42119.0,0.08096767]
[1644778915808,0.0476,42121.0,42111.0,0.3]
[1644778916109,0.10722087,42121.0,42116.0,0.00038646]
[1644778917012,0.10722087,42121.0,42119.0,0.06664789]
[1644778917207,0.106988,42121.0,42116.0,0.00038646]
[1644778917412,0.059385,42118.0,42116.0,0.00038646]
[1644778917614,0.05,42117.0,42116.0,0.00038646]
[1644778917810,0.0976,42117.0,42116.0,0.00038646]
[1644778918009,0.0476,42117.0,42116.0,0.00038646]
[1644778918209,0.0476,42117.0,42114.0,0.06690611]
[1644778918411,0.118788,42116.0,42114.0,0.06729258]
[1644778918609,0.0476,42115.0,42114.0,0.06729258]
[1644778919470,0.0476,42115.0,42110.0,0.04933142]
[1644778919667,0.16663187,42115.0,42112.0,0.00038648]
[1644778919862,0.166399,42115.0,42112.0,0.00038648]
[1644778920663,0.059402,42114.0,42110.0,0.04933142]
[1644778920861,0.0476,42113.0,42111.0,0.00038648]
[1644778921662,0.27624892,42112.0,42111.0,0.00038648]
[1644778921862,0.23635363,42111.0,42110.0,0.04933142]
[1644778922063,0.57273045,42111.0,42110.0,0.04971791]
[1644778922266,0.39577782,42111.0,42110.0,0.04971791]
[1644778922463,0.49577782,42111.0,42110.0,0.04971791]
[1644778922664,0.49577782,42111.0,42110.0,0.04471791]
[1644778923065,0.49577782,42111.0,42110.0,0.04433142]
[1644778924512,1.84577782,42111.0,42110.0,0.04433142]
[1644778924713,1.84577782,42111.0,42110.0,1.42e-06]
[1644778924916,2.38827782,42111.0,42110.0,1.42e-06]
[1644778925515,2.42241917,42111.0,42110.0,1.42e-06]
[1644778925715,2.87772899,42111.0,42110.0,1.42e-06]
[1644778926316,2.84358764,42111.0,42110.0,1.42e-06]
[1644778926716,1.25,42106.0,42093.0,0.07777128]
[1644778926962,1.25,42106.0,42091.0,0.0011]
[1644778926963,0.24040041,42101.0,42091.0,0.0011]
[1644778927159,0.3387909,42100.0,42091.0,0.0011]
[1644778927362,0.21373495,42098.0,42091.0,0.0011]
[1644778927562,0.0476,42097.0,42091.0,0.0011]
[1644778927758,0.059419,42096.0,42091.0,0.0011]
[1644778927960,0.0476,42095.0,42092.0,0.0003866]
[1644778928164,0.2717234,42097.0,42092.0,0.0003866]
[1644778928365,0.0476,42096.0,42092.0,0.0003866]
[1644778928962,0.166451,42096.0,42091.0,0.0011]
[1644778929262,0.059419,42094.0,42092.0,0.2085013]
[1644778929460,0.0476,42093.0,42092.0,0.2085013]
[1644778929861,0.0476,42093.0,42091.0,0.0011]
[1644778929862,0.3302587,42093.0,42091.0,0.0011]
[1644778930070,0.28238225,42092.0,42091.0,0.0011]
[1644778930266,0.32998225,42092.0,42091.0,0.0011]
[1644778930729,0.42998225,42092.0,42091.0,0.0011]
[1644778931130,0.42998225,42092.0,42081.0,0.0072]
[1644778931131,2.32248225,42092.0,42081.0,0.0072]
[1644778931331,1.309438,42089.0,42081.0,0.0002]
[1644778931530,0.20797885,42083.0,42075.0,0.0011]
[1644778931729,0.0476,42082.0,42075.0,0.0011]
[1644778931928,0.0476,42081.0,42075.0,0.0011]
[1644778932130,0.0476,42080.0,42075.0,0.0011]
[1644778932331,0.107049,42079.0,42075.0,0.0011]
[1644778932931,0.107049,42079.0,42076.0,0.00024233]
[1644778933931,0.0476,42079.0,42075.0,0.0011]
[1644778934132,0.0476,42079.0,42078.0,0.07286614]
[1644778934561,0.0476,42079.0,42076.0,0.00024233]
[1644778934761,0.0476,42079.0,42074.0,0.2660647]
[1644778935367,0.0476,42079.0,42072.0,0.0011]
[1644778935964,0.059445,42078.0,42072.0,0.0011]
[1644778936172,0.0476,42077.0,42072.0,0.0011]
[1644778937062,0.107053,42077.0,42072.0,0.0011]
[1644778937262,0.207053,42077.0,42072.0,0.0011]
[1644778937463,0.107053,42077.0,42072.0,0.0011]
[1644778937664,0.107053,42077.0,42072.0,0.00148592]
[1644778938306,0.118907,42076.0,42072.0,0.00148592]
[1644778938506,0.059453,42074.0,42072.0,0.00148592]
[1644778938709,0.166505,42074.0,42072.0,0.0011]
[1644778939006,0.166505,42074.0,42072.0,0.00148592]
[1644778939606,0.166505,42074.0,42072.0,0.00129939]
[1644778939807,0.166505,42074.0,42072.0,0.00091347]
[1644778941008,0.40209189,42074.0,42072.0,0.00091347]
[1644778941408,0.266505,42074.0,42072.0,0.00091347]
[1644778942463,0.107052,42074.0,42073.0,0.333161]
[1644778942662,0.3497,42083.0,42073.0,0.333161]
[1644778942663,0.0476,42083.0,42073.0,0.333161]
[1644778942863,0.578,42090.0,42073.0,0.333161]
[1644778942864,0.1789,42089.0,42073.0,0.333161]
[1644778943061,1.25,42091.0,42085.0,0.06589568]
[1644778943461,0.0476,42095.0,42085.0,0.06589568]
[1644778943659,0.059429,42092.0,42085.0,0.06589568]
[1644778943859,0.25517737,42092.0,42085.0,0.06589568]
[1644778944360,0.05597513,42092.0,42085.0,0.06589568]
[1644778944561,0.059429,42089.0,42085.0,0.06589568]
[1644778945835,0.054429,42089.0,42085.0,0.06589568]
[1644778946233,0.00592654,42095.0,42085.0,0.06589568]
[1644778946234,0.118846,42094.0,42086.0,0.61644571]
[1644778946436,0.00138443,42098.0,42097.0,0.07913979]
[1644778947132,0.059411,42102.0,42097.0,0.32780778]
[1644778947333,0.059411,42100.0,42097.0,0.32780778]
[1644778948034,0.059411,42100.0,42097.0,0.24866799]
[1644778948436,0.059409,42100.0,42097.0,0.24866799]
[1644778949032,0.059409,42100.0,42087.0,0.333161]
[1644778949233,0.059409,42100.0,42095.0,0.07869519]
[1644778949472,0.059409,42100.0,42086.0,0.28328471]
[1644778949662,0.11882,42100.0,42085.0,0.185]
[1644778949863,0.11882,42100.0,42080.0,0.21784537]
[1644778949864,0.27570793,42094.0,42080.0,0.21784537]
[1644778950164,0.27570793,42094.0,42078.0,0.30824372]
[1644778950363,0.18984344,42093.0,42078.0,0.30824372]
[1644778950562,0.18984344,42093.0,42080.0,0.333161]
[1644778950762,0.18984344,42093.0,42081.0,0.333161]
[1644778950967,0.059428,42090.0,42079.0,0.333161]
[1644778951665,0.059428,42090.0,42086.0,0.08218347]
[1644778952063,0.1,42094.0,42086.0,0.08218347]
[1644778952064,0.059421,42093.0,42086.0,0.08218347]
[1644778953205,0.11884,42093.0,42086.0,0.08218347]
[1644778953611,0.11884,42093.0,42087.0,0.28067723]
[1644778953808,0.337698,42096.0,42087.0,0.2883353]
[1644778953809,0.159417,42096.0,42087.0,0.2883353]
[1644778954008,0.159417,42096.0,42086.0,0.08218347]
[1644778954210,0.218832,42096.0,42086.0,0.08218347]
[1644778954413,0.159415,42096.0,42086.0,0.08218347]
[1644778954709,0.059415,42096.0,42086.0,0.08218347]
[1644778954910,0.059422,42093.0,42086.0,0.08218347]
[1644778956115,0.059426,42092.0,42086.0,0.08218347]
[1644778956314,0.178274,42092.0,42086.0,0.08218347]
[1644778957859,0.178274,42092.0,42089.0,0.21409543]
[1644778958062,0.059426,42092.0,42090.0,0.333161]
[1644778958260,0.059419,42094.0,42092.0,0.11885199]
[1644778958662,0.059419,42094.0,42092.0,0.20015158]
[1644778958860,0.118836,42094.0,42092.0,0.20015158]
[1644778959261,0.178258,42094.0,42092.0,0.20015158]
[1644778959662,0.118836,42094.0,42092.0,0.19015158]
[1644778960260,0.059417,42094.0,42092.0,0.19015158]
[1644778960711,0.059417,42094.0,42092.0,0.10885199]
[1644778961218,0.059417,42094.0,42074.0,0.0002078]
[1644778961219,1.25,42089.0,42074.0,0.0002078]
[1644778961415,1.309445,42085.0,42074.0,0.0002078]
[1644778961614,1.25,42083.0,42073.0,0.07398505]
[1644778961811,0.0476,42082.0,42074.0,0.00032678]
[1644778962415,0.059454,42081.0,42074.0,0.00032678]
[1644778962711,0.107047,42080.0,42074.0,0.00032678]
[1644778962911,0.107047,42080.0,42073.0,0.07398505]
[1644778963111,0.107047,42080.0,42074.0,0.0003465]
[1644778963311,0.107047,42080.0,42073.0,0.07371902]
[1644778963512,0.059445,42079.0,42073.0,0.07371902]
[1644778963718,0.0476,42078.0,42073.0,0.07371902]
[1644778964465,0.166493,42078.0,42073.0,0.07371902]
[1644778964659,0.0476,42078.0,42073.0,0.07371902]
[1644778966661,0.107044,42078.0,42073.0,0.07371902]
[1644778967062,0.225941,42078.0,42073.0,0.07371902]
[1644778967361,0.49968672,42078.0,42073.0,0.07371902]
[1644778967761,0.59968672,42078.0,42073.0,0.07371902]
[1644778968211,0.325941,42078.0,42073.0,0.07371902]
[1644778968409,0.58346611,42078.0,42072.0,0.00127319]
[1644778968611,0.325941,42078.0,42072.0,0.00127319]
[1644778968813,0.325941,42078.0,42072.0,0.00091347]
[1644778968814,0.225941,42078.0,42072.0,0.00091347]
[1644778969010,0.325941,42078.0,42072.0,0.00128182]
[1644778969415,0.278341,42078.0,42072.0,0.06739341]
[1644778970012,0.278341,42078.0,42072.0,0.06702506]
[1644778970212,0.178341,42078.0,42072.0,0.06739341]
[1644778971214,0.178341,42078.0,42072.0,0.06702506]
[1644778971612,0.178341,42078.0,42072.0,0.06739341]
[1644778972474,0.178341,42078.0,42072.0,0.06702506]
[1644778972659,0.059444,42078.0,42072.0,0.06738316]
[1644778972860,0.059444,42077.0,42072.0,0.06738316]
[1644778973068,0.059444,42076.0,42072.0,0.06738316]
[1644778973664,0.059444,42076.0,42072.0,0.06702506]
[1644778973862,0.059444,42076.0,42072.0,0.06738315]
[1644778976013,0.059444,42076.0,42072.0,0.06702506]
[1644778976212,0.059444,42076.0,42072.0,0.06738433]
[1644778977015,0.118893,42076.0,42072.0,0.06738433]
[1644778977214,0.118893,42076.0,42072.0,0.06702506]
[1644778977414,0.118893,42076.0,42072.0,0.06738433]
[1644778977614,0.118893,42076.0,42072.0,0.00127274]
[1644778978116,0.118903,42075.0,42072.0,0.00127274]
[1644778978316,0.059451,42074.0,42072.0,0.00127274]
[1644778978516,0.059451,42074.0,42072.0,0.00091347]
[1644778978715,0.118903,42074.0,42072.0,0.00091347]
[1644778978915,0.178354,42074.0,42072.0,0.00091347]
[1644778980364,0.31992487,42073.0,42072.0,0.00025998]
[1644778980764,0.41992487,42073.0,42072.0,0.00025998]
[1644778982363,0.1476,42073.0,42072.0,0.00025998]
[1644778982764,0.0476,42073.0,42072.0,0.00025998]
[1644778983416,0.31875384,42073.0,42072.0,0.00025998]
[1644778983817,0.41875384,42073.0,42072.0,0.00025998]
[1644778987766,0.51875384,42073.0,42072.0,0.00025998]
[1644778988167,1.76875384,42073.0,42072.0,0.00025998]
[1644778988570,1.93068658,42073.0,42072.0,0.00025998]
[1644778989172,1.65953274,42073.0,42072.0,0.00025998]
[1644778992411,0.30953274,42073.0,42072.0,0.00025998]
[1644778992611,0.18735676,42074.0,42072.0,0.00025998]
[1644778992612,0.12790476,42074.0,42072.0,0.00025998]
[1644778992813,0.06845376,42074.0,42072.0,0.33342098]
[1644778993014,0.06845376,42074.0,42072.0,0.00025998]
[1644778993416,0.06845376,42074.0,42072.0,0.23174354]
[1644778993811,0.06845376,42074.0,42073.0,0.333161]
[1644778994015,0.059444,42079.0,42074.0,0.13690752]
[1644778994215,0.3,42085.0,42075.0,0.330261]
[1644778994666,0.16336174,42087.0,42075.0,0.330261]
[1644778994870,0.059431,42085.0,42075.0,0.330261]
[1644778995066,0.059431,42085.0,42084.0,0.07626081]
[1644778996371,0.00182421,42088.0,42085.0,0.333542]
[1644778996569,0.16190239,42092.0,42085.0,0.333542]
[1644778996767,0.23705491,42097.0,42085.0,0.333542]
[1644778996768,0.00036486,42088.0,42085.0,0.333542]
[1644778997768,0.05942,42093.0,42092.0,0.22015387]
[1644778997970,0.05942,42093.0,42092.0,0.21515387]
[1644778998214,0.00142469,42095.0,42092.0,0.83039569]
[1644778998415,0.00142469,42095.0,42093.0,0.333542]
[1644778998614,0.00142469,42095.0,42094.0,0.6140064]
[1644778998818,0.16190239,42102.0,42094.0,0.6140064]
[1644778999016,0.16190239,42102.0,42095.0,0.333542]
[1644778999216,0.00011672,42097.0,42095.0,0.333542]
[1644778999616,0.00011672,42097.0,42096.0,0.28136469]
[1644778999817,0.00011672,42097.0,42096.0,0.333542]
[1644779000020,0.059409,42101.0,42096.0,0.333542]
[1644779000224,0.059409,42101.0,42093.0,0.30277093]
[1644779000419,0.00011615,42099.0,42093.0,0.30277093]
[1644779000618,0.05953515,42099.0,42092.0,0.21515387]
[1644779001020,0.05953515,42099.0,42094.0,0.333542]
[1644779001219,0.05953515,42099.0,42092.0,0.333542]
[1644779001220,0.059419,42099.0,42092.0,0.333542]
[1644779001621,0.059419,42098.0,42092.0,0.333542]
[1644779002263,0.059419,42098.0,42096.0,0.333542]
[1644779002460,0.059419,42098.0,42095.0,0.24775856]
[1644779002765,0.059419,42098.0,42096.0,0.333542]
[1644779002766,0.00037575,42097.0,42096.0,0.333542]
[1644779002961,0.00037575,42097.0,42095.0,0.24775856]
[1644779003662,0.059419,42098.0,42095.0,0.24775856]
[1644779003864,0.05979475,42098.0,42095.0,0.24775856]
[1644779004862,0.059419,42098.0,42095.0,0.24775856]
[1644779005063,0.05941,42100.0,42095.0,0.24775856]
[1644779005270,0.00035586,42099.0,42096.0,0.333542]
[1644779006114,0.059406,42102.0,42096.0,0.333542]
[1644779006313,0.059406,42102.0,42101.0,0.06479417]
[1644779006515,0.059406,42102.0,42101.0,0.39833617]
[1644779007416,0.059402,42105.0,42101.0,0.39833617]